fUSD/lending_fUSD_20241107
["ID","MTS","AMOUNT","RATE_DAILY","PERIOD"]
[341561298,1730994640609,-247.29727624,0.0003,4]
[341561299,1730994640621,-261.65457805,0.0003,4]
[341561300,1730994640632,-706.695,0.0003,4]
[341561301,1730994640643,-4913.766527,0.0003,4]
[341561319,1730994643328,-150.0,0.00029745,2]
[341561321,1730994643338,-150.0,0.00029772,2]
[341561323,1730994643347,-150.0,0.00029813,2]
[341561325,1730994643357,-150.0,0.00029815,2]
[341561327,1730994643366,-150.0,0.00029835,2]
[341561329,1730994643376,-1688.19287024,0.00029856,15]
[341561331,1730994643384,-150.0,0.00029955,2]
[341561333,1730994643394,-228.09,0.0002999,3]
[341561335,1730994643403,-155.71476803,0.00029998,2]
[341561337,1730994643412,-2300.63712046,0.00029998,2]
[341561340,1730994643727,-2928.48994978,0.00029998,2]
[341561341,1730994643737,-4018.76341021,0.0003,4]
[341561342,1730994644921,-150.0,0.00029768,2]
[341561343,1730994644931,-150.0,0.00029769,2]
[341561344,1730994644941,-150.0,0.0002977,2]
[341561345,1730994644951,-32.04424462,0.00029784,2]
[341561477,1730994646478,-117.95575538,0.00029784,2]
[341561478,1730994646488,-150.0,0.00029786,2]
[341561479,1730994646499,-150.0,0.00029815,2]
[341561480,1730994646509,-150.0,0.00029816,2]
[341561481,1730994646519,-150.0,0.00029822,2]
[341561482,1730994646529,-150.0,0.00029824,2]
[341561483,1730994646539,-150.0,0.00029836,2]
[341561484,1730994646549,-150.0,0.0002989,2]
[341561485,1730994646558,-1688.19287024,0.000299,15]
[341561486,1730994646568,-150.0,0.00029937,2]
[341561488,1730994646578,-150.0,0.00029949,2]
[341561490,1730994646588,-150.0,0.00029963,2]
[341561492,1730994646598,-12008.91311495,0.0003,4]
[341561494,1730994646614,-7698.29984578,0.0003,4]
[341561496,1730994646623,-20174.4754655,0.0003,4]
[341561498,1730994646634,-49104.05751984,0.0003,5]
[341561501,1730994646647,-7622.98637574,0.0003,5]
[341561503,1730994646663,-1500.0,0.00029742,2]
[341561505,1730994646674,-74526.27016051,0.0003,5]
[341561509,1730994646700,-1500.0,0.0002973,2]
[341561511,1730994646709,-150.0,0.00029824,2]
[341561513,1730994646719,-150.0,0.00029995,2]
[341561515,1730994646729,-88.3671845,0.0003,5]
[341561546,1730994661392,300.0,0.00019725,2]
[341561547,1730994671602,704.7479,0.00027038,2]
[341561548,1730994998470,150.0,0.000201,2]
[341561549,1730995033016,1566.0,0.0002661,30]
[341561551,1730995043012,157.72,0.00015342,2]
[341561552,1730995118745,333.0,0.0002661,30]
[341561553,1730995444901,-1399.76,0.00026097,2]
[341561554,1730995444937,-753.76867376,0.00026631,2]
[341561555,1730995444978,-176.17,0.00026731,2]
[341561556,1730995445014,-1093.94,0.00027182,2]
[341561557,1730995445055,-205.81284664,0.00027397,60]
[341561558,1730995445094,-1298.67482775,0.000274,7]
[341561559,1730995445134,-851.79,0.000274,2]
[341561560,1730995445176,-1093.94,0.00027619,2]
[341561561,1730995445216,-154.4,0.00027697,2]
[341561562,1730995445253,-986.34,0.00027773,2]
[341561563,1730995445289,-191.57,0.00027773,5]
[341561564,1730995445326,-1000.0,0.0002782,2]
[341561565,1730995445363,-765.9996,0.0002786,2]
[341561566,1730995445400,-200.0,0.00027883,7]
[341561567,1730995445436,-250.0,0.00027894,2]
[341561568,1730995445473,-506.0336739,0.00027943,2]
[341561569,1730995445509,-250.0,0.00027943,2]
[341561570,1730995445545,-293.13,0.00027943,2]
[341561571,1730995445584,-1093.94,0.00028056,2]
[341561572,1730995445613,-2000.0,0.00028086,120]
[341561573,1730995445990,-167.28,0.00028139,2]
[341561574,1730995446043,-23900.0,0.00028139,2]
[341561575,1730995446066,-246.69,0.00028153,30]
[341561576,1730995446092,-250.0,0.00028187,2]
[341561577,1730995446115,-1747.19,0.00028227,2]
[341561578,1730995446137,-1399.76,0.00028361,2]
[341561579,1730995446161,-1093.94,0.00028492,2]
[341561580,1730995446184,-288.02,0.00028664,2]
[341561581,1730995446208,-5364.53,0.00028664,2]
[341561582,1730995446231,-350.69,0.00028696,2]
[341561583,1730995446256,-410.4,0.00028723,120]
[341561584,1730995446279,-166.52,0.00028759,2]
[341561585,1730995446302,-1093.94,0.00028929,2]
[341561586,1730995446333,-1400.0,0.00029,10]
[341561587,1730995446358,-36.77037795,0.000291,10]
[341561589,1730995548364,158.35,0.00015342,2]
[341561590,1730995610157,-250.0,0.00028645,2]
[341561591,1730995610179,-165.09,0.00028653,2]
[341561592,1730995610203,-792.15635632,0.00028697,120]
[341561593,1730995626552,2987.33580966,0.0002661,30]
[341561594,1730995631175,-250.0,0.00028616,2]
[341561595,1730995631197,-817.32764057,0.00028697,120]
[341561598,1730995750152,-1259.78,0.00026572,2]
[341561614,1730995831403,-200.0,0.00028427,7]
[341561616,1730995831413,-247.20449145,0.00028437,2]
[341561617,1730995831425,-2.79550855,0.00028437,2]
[341561618,1730995831434,-234.35,0.00028677,30]
[341561619,1730995831444,-390.51600311,0.00028697,120]
[341561620,1730995831454,-2409.94448834,0.00028697,2]
[341561621,1730995831466,-1789.54181961,0.00028697,2]
[341561623,1730995831481,-5895.3053598,0.00028697,2]
[341561626,1730995831502,-1106.02,0.00028697,2]
[341561633,1730995831552,-1129.42207152,0.00028697,2]
[341561635,1730995831598,-1709.44790727,0.00028697,2]
[341561636,1730995831613,-9860.31835346,0.00028697,2]
[341561637,1730995831623,-1259.78,0.00028836,2]
[341561638,1730995831632,-1300.0,0.00029,10]
[341561639,1730995831643,-2700.0,0.000291,10]
[341561640,1730995831652,-500.0,0.000292,2]
[341561641,1730995831662,-4000.0,0.000292,10]
[341561642,1730995831672,-3352.81095244,0.000293,2]
[341561643,1730995831683,-1221.31043856,0.000293,2]
[341561644,1730995831707,-1420.194409,0.000293,2]
[341561645,1730995831717,-2017.9943,0.000293,2]
[341561646,1730995831727,-5400.0,0.000293,10]
[341561647,1730995831737,-166.76,0.00029323,2]
[341561648,1730995831747,-1093.94,0.00029366,2]
[341561649,1730995831757,-2016.59355085,0.00029399,2]
[341561650,1730995831769,-268.07010932,0.00029399,2]
[341561651,1730995831780,-1378.29577402,0.00029399,2]
[341561652,1730995831792,-427.51880542,0.00029399,2]
[341561653,1730995832737,-2655.04606099,0.00029399,2]
[341561660,1730995838006,-118.59195988,0.00028409,2]
[341561661,1730995838018,-81.40804012,0.00028409,2]
[341561662,1730995838029,-975.40695986,0.00029399,2]
[341561663,1730995838066,-580.70497735,0.00029399,2]
[341561664,1730995838105,-338.18,0.00029399,2]
[341561665,1730995838119,-429.18376219,0.00029399,2]
[341561666,1730995838129,-1956.29442984,0.000294,2]
[341561667,1730995838140,-750.0,0.000294,2]
[341561668,1730995838150,-749.86877271,0.000294,2]
[341561669,1730995838162,-5456.73003714,0.000294,2]
[341561670,1730995838173,-1140.474,0.000294,2]
[341561671,1730995838227,-5990.02253738,0.000294,2]
[341561672,1730995838256,-4942.78747297,0.000294,2]
[341561673,1730995838268,-2791.15404996,0.000294,2]
[341561674,1730995838278,-14798.0739,0.000294,2]
[341561675,1730995838287,-708.22289883,0.000294,15]
[341561676,1730995838297,-6800.0,0.000294,10]
[341561677,1730995838306,-2500.0,0.000294,2]
[341561678,1730995838316,-467.6266,0.000294,2]
[341561679,1730995838325,-267.62909264,0.000294,2]
[341561680,1730995838334,-708.22289883,0.00029456,15]
[341561681,1730995838343,-267.62909261,0.00029471,2]
[341561683,1730995838352,-500.0,0.00029473,5]
[341561685,1730995838365,-500.43514332,0.00029473,5]
[341561687,1730995838374,-443.98738681,0.00029473,5]
[341561689,1730995838383,-500.0,0.00029499,2]
[341561691,1730995838392,-500.0,0.00029499,2]
[341561693,1730995838402,-500.0,0.00029499,2]
[341561695,1730995838411,-500.0,0.00029499,2]
[341561696,1730995838420,-500.0,0.00029499,2]
[341561697,1730995838429,-500.0,0.00029499,2]
[341561698,1730995838438,-500.0,0.00029499,2]
[341561699,1730995838447,-500.0,0.00029499,2]
[341561700,1730995838456,-500.0,0.00029499,2]
[341561701,1730995838466,-488.89491764,0.00029499,2]
[341561702,1730995838476,-500.0,0.00029499,2]
[341561703,1730995838486,-306.48055594,0.00029499,2]
[341561704,1730995838496,-7500.0,0.00029499,2]
[341561705,1730995838505,-100000.0,0.000295,2]
[341561706,1730995838514,-1000.0,0.000295,2]
[341561707,1730995838524,-10000.0,0.000295,10]
[341561708,1730995838533,-102280.69905025,0.000295,2]
[341561709,1730995838545,-14588.60921322,0.000295,2]
[341561710,1730995838557,-45129.01313653,0.000295,2]
[341561711,1730995838566,-6287.8412,0.000295,2]
[341561712,1730995838575,-150.0,0.000295,120]
[341561713,1730995838585,-1300.0,0.000295,10]
[341561714,1730995838594,-708.22289883,0.00029511,15]
[341561715,1730995838605,-267.62909261,0.00029543,2]
[341561716,1730995838615,-708.22289883,0.00029567,15]
[341561717,1730995838625,-400.0,0.000296,2]
[341561718,1730995838634,-1300.0,0.000296,10]
[341561719,1730995838643,-267.62909261,0.00029614,2]
[341561720,1730995838653,-708.22289883,0.00029622,15]
[341561721,1730995838666,-708.22289883,0.00029678,15]
[341561722,1730995838676,-267.62909261,0.00029686,2]
[341561723,1730995838685,-1300.0,0.000297,10]
[341561724,1730995838695,-167.9954,0.000297,2]
[341561725,1730995838704,-1081.0,0.000297,2]
[341561726,1730995838714,-708.22289883,0.00029733,15]
[341561727,1730995838724,-267.62909261,0.00029757,2]
[341561728,1730995838734,-708.22289883,0.00029789,15]
[341561729,1730995838743,-323.15414381,0.00029799,2]
[341561730,1730995838753,-1300.0,0.000298,10]
[341561731,1730995838764,-300.59961683,0.00029803,2]
[341561739,1730995839413,-7825.0428,0.000294,2]
[341561740,1730995839423,-793.34038317,0.00029803,2]
[341561741,1730995839432,-154.7728654,0.00029804,2]
[341561742,1730995839442,-160.69962714,0.00029825,24]
[341561743,1730995839451,-1186.694,0.00029825,24]
[341561744,1730995839461,-267.62909261,0.00029829,2]
[341561745,1730995839470,-150.0,0.00029837,2]
[341561746,1730995839480,-708.22289883,0.00029844,15]
[341561747,1730995839489,-323.15414381,0.0002985,2]
[341561748,1730995839499,-285.05141236,0.00029879,2]
[341561749,1730995839509,-150.16357191,0.00029896,2]
[341561750,1730995839518,-1642.29662385,0.00029899,2]
[341561751,1730995839528,-246.24940741,0.00029899,2]
[341561752,1730995839538,-1453.86505111,0.000299,2]
[341561753,1730995839549,-188.43157274,0.000299,2]
[341561754,1730995839559,-95.30477866,0.000299,2]
[341561755,1730995839571,-404.69522134,0.000299,2]
[341561756,1730995839580,-500.0,0.000299,3]
[341561757,1730995839590,-3072.55655044,0.000299,10]
[341561758,1730995839601,-6851.81921727,0.000299,10]
[341561759,1730995839613,-2036.36077496,0.000299,10]
[341561760,1730995839625,-3708.23086435,0.000299,10]
[341561761,1730995839636,-275.25204732,0.000299,10]
[341561762,1730995839666,-4132.84445775,0.000299,10]
[341561763,1730995842134,245.21586623,0.00018123,2]
[341561774,1730995842628,-20931.03626882,0.000299,10]
[341561863,1730995843645,-14217.49999975,0.000299,10]
[341561871,1730995843715,-134.13846513,0.000299,10]
[341561873,1730995843727,-5708.725,0.000299,10]
[341562032,1730995845339,-454.71902432,0.000299,10]
[341562034,1730995845351,-19300.0,0.000299,10]
[341562039,1730995845392,-961.17975119,0.000299,10]
[341562042,1730995845404,-7591.4,0.000299,10]
[341562044,1730995845416,-40981.78595466,0.000299,10]
[341562046,1730995845426,-1640.29877096,0.000299,2]
[341562048,1730995845436,-708.22289883,0.000299,15]
[341562050,1730995845446,-1854.0,0.000299,10]
[341562052,1730995845455,-181.99734624,0.000299,2]
[341562054,1730995845465,-267.62909261,0.000299,2]
[341562056,1730995845474,-695.07567409,0.000299,2]
[341562058,1730995845485,-323.15414381,0.000299,2]
[341562060,1730995845496,-150.91409496,0.00029972,2]
[341562062,1730995845508,-500.0,0.00029973,5]
[341562064,1730995845519,-500.0,0.00029973,5]
[341562066,1730995845529,-500.0,0.00029973,5]
[341562068,1730995845539,-237.41567917,0.00029973,5]
[341562070,1730995845548,-519.68773928,0.00029973,5]
[341562072,1730995845558,-339.72158475,0.00029973,5]
[341562074,1730995845568,-500.0,0.00029973,5]
[341562076,1730995845578,-150.0,0.00029976,2]
[341562078,1730995845588,-151.21886617,0.00029986,2]
[341562080,1730995845598,-151.21886617,0.00029986,2]
[341562083,1730995845608,-190.08,0.00029986,3]
[341562085,1730995845618,-7851.9932553,0.0002999,2]
[341562087,1730995845630,-151.21886617,0.0002999,2]
[341562088,1730995845640,-17224.35075124,0.00029996,4]
[341562091,1730995845651,-1899.2,0.00029996,4]
[341562093,1730995845663,-264469.22155685,0.00029996,4]
[341562095,1730995845674,-155749.13483748,0.00029996,4]
[341562097,1730995845684,-10694.74667522,0.00029996,4]
[341562099,1730995845695,-41668.77786324,0.00029996,2]
[341562101,1730995845707,-15269.8788,0.00029996,2]
[341562104,1730995845719,-37141.22019187,0.00029996,2]
[341562107,1730995845736,-717.30004149,0.00029996,2]
[341562168,1730996062604,157.27,0.00015342,2]
[341562169,1730996206928,-160.8,0.00022897,2]
[341562170,1730996206951,-261.48247075,0.00023114,2]
[341562171,1730996206971,-173.62,0.00023214,2]
[341562172,1730996206990,-261.48247074,0.00023973,2]
[341562173,1730996207010,-432.10501378,0.00024832,2]
[341562174,1730996207030,-261.48247074,0.00024832,2]
[341562175,1730996207050,-500.0,0.00024932,2]
[341562176,1730996207070,-500.0,0.00024932,2]
[341562177,1730996207091,-500.0,0.00024932,2]
[341562178,1730996207111,-5942.85387739,0.00024932,2]
[341562179,1730996518134,-250.0,0.00021,2]
[341562180,1730996518158,-160.8,0.00021725,2]
[341562181,1730996518180,-784.44741223,0.00021786,2]
[341562182,1730996518200,-173.62,0.00021886,2]
[341562183,1730996518220,-300.0,0.00023,2]
[341562184,1730996518239,-432.10501378,0.000249,2]
[341562185,1730996518260,-350.0,0.00025,2]
[341562186,1730996523797,-432.10501376,0.00025759,2]
[341562187,1730996523818,-5942.85387739,0.00025859,2]
[341562188,1730996523840,-1287.28,0.00025859,2]
[341562189,1730996523860,-5702.67,0.000261,10]
[341562190,1730996523880,-150.99,0.000261,2]
[341562191,1730996523901,-2751.0,0.000262,3]
[341562192,1730996523924,-201.44,0.0002652,2]
[341562193,1730996523945,-176.17,0.0002662,2]
[341562194,1730996523968,-3778.29,0.00026686,2]
[341562195,1730996523988,-17126.22868284,0.00027,2]
[341562200,1730996616501,500.0,0.00024932,2]
[341562201,1730996616921,500.0,0.00024932,2]
[341562202,1730996617280,500.0,0.00024932,2]
[341562204,1730996649931,269.2,0.00015342,2]
[341562205,1730996650141,269.2,0.00021745,2]
[341562206,1730996708711,37961.6,0.00016,2]
[341562207,1730996708736,50000.0,0.00016,2]
[341562208,1730996708758,50000.0,0.00016,2]
[341562209,1730996708779,50000.0,0.00016,2]
[341562211,1730996708806,50000.0,0.00016,2]
[341562213,1730996708826,499842.73,0.00016,2]
[341562214,1730996708849,9378.87,0.00016,2]
[341562215,1730996708869,700000.0,0.00016,2]
[341562216,1730996708895,637800.88278299,0.00016,2]
[341562217,1730996825162,-897.21445561,0.00021,2]
[341562218,1730996830145,-508.76508803,0.00021,2]
[341562219,1730996830180,-180.44902462,0.00025,2]
[341562220,1730996844184,-229.48931349,0.00022,2]
[341562221,1730996849284,1548.8,0.0002001,2]
[341562224,1730996901253,1102.03345946,0.0001439,2]
[341562228,1730996926295,2186.38463321,0.000145,2]
[341562236,1730996946156,-7820.43949207,0.00022,2]
[341562237,1730996946177,-432.10501376,0.00023822,2]
[341562238,1730996946197,-70654.9048286,0.00023922,2]
[341562239,1730996946219,-12913.98062827,0.00025,2]
[341562240,1730996946238,-1528.3989766,0.00025,2]
[341562241,1730996946258,-2076.71872242,0.00025,2]
[341562242,1730996946278,-5942.85387739,0.00025,2]
[341562243,1730996946299,-1222.91,0.00025394,2]
[341562244,1730996953412,245.97422477,0.00025294,2]
[341562245,1730996954099,-2895.81990433,0.000264,2]
[341562246,1730996956089,-3411.77442488,0.000264,2]
[341562248,1730996972167,-3347.4950202,0.00027,2]
[341562249,1730996972192,-400.0,0.00027,2]
[341562250,1730996972212,-2000.0,0.00027,120]
[341562251,1730996972232,-150.99,0.00027,2]
[341562252,1730996972252,-250.0,0.00027013,2]
[341562253,1730996972273,-453.92,0.00027013,2]
[341562254,1730996972293,-150.0,0.0002708,2]
[341562255,1730996972313,-3778.29,0.00027115,2]
[341562256,1730997014255,3306.0,0.00026524,2]
[341562257,1730997015035,3306.0,0.0002695,2]
[341562272,1730997031821,-804.87,0.0002712,2]
[341562273,1730997031831,-160.3,0.00027131,2]
[341562274,1730997031840,-200.0,0.00027144,2]
[341562275,1730997031849,-388.64,0.0002717,3]
[341562276,1730997031858,-350.79,0.0002719,2]
[341562277,1730997031867,-475.2,0.00027192,3]
[341562278,1730997031876,-250.0,0.00027202,2]
[341562279,1730997031885,-23900.0,0.00027202,2]
[341562280,1730997031894,-1002.0,0.00027223,2]
[341562281,1730997031903,-158.4,0.00027224,3]
[341562282,1730997031912,-5621.75,0.00027226,2]
[341562283,1730997031921,-250.0,0.00027234,2]
[341562284,1730997031930,-2885.16,0.00027234,2]
[341562285,1730997031939,-805.70814731,0.00027234,2]
[341562286,1730997031951,-4819.69185269,0.00027234,2]
[341562287,1730997031961,-409.67,0.00027252,2]
[341562289,1730997031970,-4080.36,0.0002728,2]
[341562290,1730997031979,-245.97422477,0.00027297,2]
[341562291,1730997031988,-249.92004866,0.00027333,2]
[341562292,1730997031997,-500.0,0.00027333,2]
[341562293,1730997032006,-1000.0,0.00027346,2]
[341562294,1730997032014,-1377.83,0.0002735,2]
[341562295,1730997032023,-200.0,0.00027369,2]
[341562296,1730997032032,-3306.0,0.00027376,2]
[341562297,1730997032041,-200.0,0.00027397,7]
[341562298,1730997032051,-328.32,0.00027399,120]
[341562299,1730997032060,-1000.0,0.00027404,2]
[341562300,1730997032069,-300.0,0.00027406,2]
[341562301,1730997032078,-2000.0,0.00027418,120]
[341562302,1730997032087,-1811.33,0.00027449,2]
[341562303,1730997032096,-247.13,0.00027464,30]
[341562304,1730997032105,-154.4,0.00027494,2]
[341562305,1730997032114,-160.62,0.00027511,2]
[341562306,1730997032123,-1368.41,0.00027518,2]
[341562307,1730997032132,-500.0,0.00027542,2]
[341562308,1730997032141,-1222.91,0.00027658,2]
[341562309,1730997032150,-3.86692919,0.00027663,2]
[341562310,1730997032162,-16404.49307081,0.00027663,2]
[341562311,1730997032171,-3306.0,0.00027802,2]
[341562312,1730997032181,-180.54,0.00027906,2]
[341562313,1730997032190,-1541.302593,0.00028,29]
[341562314,1730997032199,-269.2,0.00028147,2]
[341562315,1730997032209,-3306.0,0.00028228,2]
[341562316,1730997032219,-372.84,0.00028414,2]
[341562317,1730997032228,-804.87,0.00028476,2]
[341562318,1730997032237,-316.8,0.00028594,3]
[341562319,1730997032246,-167.06,0.0002861,2]
[341562320,1730997032256,-3306.0,0.00028654,2]
[341562321,1730997032265,-934.51336364,0.00028702,2]
[341562322,1730997032275,-450.0,0.00029,2]
[341562323,1730997032284,-1800.0,0.00029,30]
[341562324,1730997032294,-471.68,0.0002903,120]
[341562325,1730997032305,-3306.0,0.00029081,2]
[341562326,1730997032315,-786.87,0.0002918,10]
[341562327,1730997032324,-944.25,0.0002919,10]
[341562328,1730997032334,-17305.0924,0.000292,2]
[341562329,1730997032344,-3331.7,0.000292,2]
[341562330,1730997032354,-19318.0158,0.00029289,2]
[341562331,1730997032363,-1597.044,0.000293,2]
[341562332,1730997032373,-23504.45781238,0.000293,2]
[341562333,1730997032411,-1981.97518762,0.000293,2]
[341562334,1730997032421,-245.97422477,0.000293,2]
[341562335,1730997032431,-500.0,0.00029373,5]
[341562336,1730997032440,-3819.55058761,0.00029389,2]
[341562337,1730997032451,-567.89352,0.00029389,2]
[341562338,1730997032478,-276.7759711,0.00029389,2]
[341562339,1730997032512,-452.76695977,0.00029389,2]
[341562340,1730997032524,-3454.9733866,0.00029389,2]
[341562341,1730997032533,-140.97924246,0.0002939,2]
[341562343,1730997037661,-500.0,0.00029373,5]
[341562344,1730997037671,-6090.00140263,0.0002939,2]
[341562345,1730997037720,-551.15361802,0.0002939,2]
[341562346,1730997037732,-1432.37124919,0.0002939,2]
[341562347,1730997037778,-13919.93409592,0.0002939,2]
[341562348,1730997037788,-153.3032,0.000294,2]
[341562349,1730997037797,-27562.81591995,0.000294,2]
[341562350,1730997037811,-3590.13138443,0.000294,2]
[341562351,1730997037891,-37010.14324801,0.000294,2]
[341562354,1730997039753,-165.09,0.00028976,2]
[341562355,1730997039763,-655.73,0.0002918,10]
[341562356,1730997039772,-500.0,0.00029399,2]
[341562357,1730997039989,-500.0,0.00029399,2]
[341562358,1730997039999,-500.0,0.00029399,2]
[341562359,1730997040008,-500.0,0.00029399,2]
[341562360,1730997040017,-500.0,0.00029399,2]
[341562361,1730997040027,-500.0,0.00029399,2]
[341562362,1730997040036,-2872.16475639,0.000294,2]
[341562363,1730997040068,-500.0,0.00029399,2]
[341562364,1730997040077,-1122.82500606,0.000294,2]
[341562368,1730997042875,-500.0,0.00029373,5]
[341562369,1730997042885,-500.0,0.00029399,2]
[341562370,1730997042894,-500.0,0.00029399,2]
[341562371,1730997042903,-500.0,0.00029399,2]
[341562372,1730997042913,-641.49955104,0.00029399,2]
[341562373,1730997042922,-18301.3526015,0.000294,2]
[341562374,1730997042934,-3318.476273,0.000294,2]
[341562375,1730997042987,-6222.09081066,0.000294,2]
[341562376,1730997042997,-4590.6636,0.000294,2]
[341562377,1730997043006,-3306.0,0.00029507,2]
[341562378,1730997043016,-295.8446,0.000297,2]
[341562379,1730997043026,-1467.785,0.00029824,24]
[341562380,1730997043035,-804.87,0.00029832,2]
[341562381,1730997043044,-782.25034141,0.00029891,3]
[341562382,1730997043100,-255.6775,0.00029891,3]
[341562383,1730997043160,-2342.48199892,0.00029891,3]
[341562586,1730997045257,2751.0,0.000257,3]
[341562607,1730997045541,-31619.59015967,0.00029891,3]
[341562610,1730997045551,-165.99564777,0.00029896,2]
[341562612,1730997045563,-35000.0,0.000299,3]
[341562614,1730997045573,-250000.0,0.000299,2]
[341562616,1730997045588,-1222.91,0.00029922,2]
[341562618,1730997045598,-500.0,0.00029973,5]
[341562620,1730997045608,-339.00646621,0.00029973,5]
[341562622,1730997045618,-15168.1954743,0.00029995,2]
[341562623,1730997045627,-729668.73357327,0.00029996,2]
[341562644,1730997045824,-1148.93866287,0.00029996,2]
[341563072,1730997174839,173.85,0.00015342,2]
[341563074,1730997186864,1001.00014632,0.0002661,30]
[341563075,1730997500837,2000.0,0.0002001,2]
[341563077,1730997851510,188.96747161,0.000153,2]
[341563079,1730998039142,-192.13,0.00022541,2]
[341563080,1730998039164,-887.3172972,0.00024832,2]
[341563081,1730998039184,-500.0,0.00024932,2]
[341563082,1730998039203,-500.0,0.00024932,2]
[341563083,1730998039222,-357.18667866,0.00024932,2]
[341563084,1730998043160,-142.81332134,0.00024932,2]
[341563085,1730998043180,-500.0,0.00024932,2]
[341563086,1730998043199,-1337.60379183,0.00024932,2]
[341563087,1730998052150,-594.264057,0.00024707,2]
[341563088,1730998052170,-68.38119544,0.00024932,2]
[341563089,1730998053118,-1329.73526199,0.00024932,2]
[341563090,1730998118468,150.0,0.0002001,2]
[341563092,1730998148155,-250.0,0.00021,2]
[341563093,1730998148176,-300.0,0.00023,2]
[341563094,1730998148196,-350.0,0.00025,2]
[341563095,1730998148217,-1811.48289,0.00025552,2]
[341563096,1730998148237,-199.28379995,0.00025681,2]
[341563097,1730998148256,-150.0,0.00025781,2]
[341563098,1730998148275,-3022.0,0.000258,3]
[341563099,1730998148294,-1051.0,0.000258,3]
[341563100,1730998148314,-3192.05349522,0.00026067,2]
[341563101,1730998148334,-999.99,0.00026067,2]
[341563102,1730998148353,-201.44,0.00026067,2]
[341563103,1730998148373,-199.28379995,0.00026099,2]
[341563104,1730998148393,-1170.99,0.00026199,2]
[341563105,1730998148411,-780.65,0.00026199,2]
[341563106,1730998148430,-6758.92,0.00026199,2]
[341563107,1730998148449,-5777.28,0.00026199,10]
[341563108,1730998148471,-625.34,0.00026721,2]
[341563109,1730998148490,-400.0,0.00027,2]
[341563120,1730998231834,-793.60181794,0.00027197,2]
[341563121,1730998231957,-348.89818206,0.00027197,2]
[341563122,1730998231967,-177.85,0.00027242,2]
[341563123,1730998231977,-310.7,0.00027497,2]
[341563124,1730998231986,-150.0,0.00027546,2]
[341563125,1730998231995,-160.3,0.00027628,2]
[341563126,1730998232004,-200.0,0.00027634,7]
[341563127,1730998232013,-1142.5,0.00027634,2]
[341563128,1730998232024,-250.0,0.00027646,2]
[341563129,1730998232033,-321.94,0.00027691,2]
[341563130,1730998232042,-160.62,0.0002774,2]
[341563131,1730998232051,-200.0,0.0002782,2]
[341563132,1730998232061,-1000.0,0.0002789,2]
[341563133,1730998232075,-300.0,0.00027953,2]
[341563134,1730998232084,-5203.83314969,0.00027953,2]
[341563135,1730998232096,-3403.73811044,0.00027953,2]
[341563140,1730998237919,-1346.31815378,0.00027953,2]
[341563141,1730998238050,-147.74836154,0.00027953,2]
[341563142,1730998238099,-62.35526824,0.00027953,2]
[341563143,1730998238417,-270.73710843,0.00027953,2]
[341563144,1730998238428,-1169.55400002,0.00027953,2]
[341563145,1730998238439,-872.82005185,0.00027953,2]
[341563146,1730998239177,314.0,0.00027,120]
[341563148,1730998239750,-9389.99999865,0.00027953,2]
[341563149,1730998239809,-1379.48730018,0.00027953,2]
[341563150,1730998239821,-653.40849718,0.00027953,2]
[341563151,1730998239830,-500.0,0.00027962,2]
[341563152,1730998239840,-106.00722454,0.00027963,2]
[341563153,1730998240032,-916.41277546,0.00027963,2]
[341563154,1730998240045,-200.0,0.00027982,2]